bitfinex/quotes_BTCUSD_20240906
["timestamp","ask_amount","ask_price","bid_price","bid_amount"]
[1725594828820,3.3571668,56701.0,56700.0,0.009]
[1725594829031,3.3571668,56701.0,56700.0,0.030632]
[1725594829255,3.3571668,56701.0,56700.0,0.010632]
[1725594829507,3.3571668,56701.0,56700.0,0.030632]
[1725594831281,3.3571668,56701.0,56700.0,0.032632]
[1725594831920,3.3571668,56701.0,56700.0,0.030632]
[1725594833006,3.3571668,56701.0,56700.0,0.010632]
[1725594834678,3.7098938,56701.0,56700.0,0.008632]
[1725594834878,3.7806378,56701.0,56700.0,0.008632]
[1725594837044,3.79911796,56701.0,56700.0,0.008632]
[1725594839521,4.26911796,56701.0,56700.0,0.008632]
[1725594839745,4.26911796,56701.0,56697.0,0.000632]
[1725594839746,1.587357,56698.0,56697.0,0.000632]
[1725594840033,1.687357,56698.0,56697.0,0.000632]
[1725594840240,3.356465,56698.0,56697.0,0.000632]
[1725594841528,3.357465,56698.0,56697.0,0.001632]
[1725594841968,3.357465,56698.0,56697.0,0.021632]
[1725594842415,3.357465,56698.0,56697.0,0.001632]
[1725594842641,3.357465,56698.0,56697.0,0.021632]
[1725594843054,3.356465,56698.0,56697.0,0.020632]
[1725594843531,3.003719,56698.0,56697.0,0.241532]
[1725594844219,3.003719,56698.0,56697.0,0.243532]
[1725594845171,2.198227,56698.0,56697.0,0.243532]
[1725594845419,1.128078,56698.0,56697.0,1.125412]
[1725594845655,1.128078,56698.0,56697.0,0.80053514]
[1725594845656,0.547439,56698.0,56697.0,0.80053514]
[1725594845848,1.404255,56701.0,56700.0,0.223532]
[1725594846170,2.198198,56701.0,56700.0,0.223532]
[1725594846442,2.198198,56701.0,56700.0,0.25139547]
[1725594846646,2.198198,56701.0,56700.0,0.243532]
[1725594847107,2.550925,56701.0,56700.0,0.27139547]
[1725594847560,2.550925,56701.0,56700.0,0.243532]
[1725594848264,2.198198,56701.0,56700.0,0.243532]
[1725594848713,2.198198,56701.0,56700.0,0.27139466]
[1725594848947,2.550925,56701.0,56700.0,0.243532]
[1725594849806,2.550925,56701.0,56700.0,0.27239466]
[1725594850035,2.550925,56701.0,56700.0,0.244532]
[1725594850533,2.550925,56701.0,56700.0,0.27239466]
[1725594850757,2.5785779,56701.0,56700.0,0.27239466]
[1725594851665,2.550925,56701.0,56700.0,0.27139466]
[1725594852107,2.551925,56701.0,56700.0,0.27239466]
[1725594853022,2.551925,56701.0,56700.0,0.244532]
[1725594853253,2.93230468,56701.0,56700.0,0.144932]
[1725594853439,2.93312068,56701.0,56700.0,0.144932]
[1725594855037,2.93212068,56701.0,56700.0,0.143932]
[1725594855502,2.93212068,56701.0,56700.0,0.144932]
[1725594858468,2.57939368,56701.0,56700.0,0.144932]
[1725594859143,2.551741,56701.0,56700.0,0.17279466]
[1725594859362,2.551741,56701.0,56700.0,0.144932]
[1725594859820,2.551741,56701.0,56700.0,0.023632]
[1725594860494,2.904468,56701.0,56700.0,0.023632]
[1725594860944,2.93212139,56701.0,56700.0,0.023632]
[1725594861748,2.93212139,56701.0,56700.0,0.022632]
[1725594861951,2.93212139,56701.0,56700.0,0.023632]
[1725594864908,2.68772095,56701.0,56700.0,0.023632]
[1725594865149,2.86408495,56701.0,56700.0,0.023632]
[1725594866976,2.86408495,56701.0,56700.0,0.246032]
[1725594869212,2.93212239,56701.0,56700.0,0.246032]
[1725594876210,2.38324539,56701.0,56700.0,0.246032]
[1725594876433,2.22103139,56701.0,56700.0,0.246032]
[1725594878015,2.22103139,56701.0,56700.0,0.247664]
[1725594879736,0.59811939,56701.0,56700.0,0.776763]
[1725594879949,0.520991,56701.0,56700.0,0.247664]
[1725594880160,0.520991,56701.0,56700.0,0.80815253]
[1725594880367,0.520991,56701.0,56700.0,0.45541953]
[1725594880791,0.520991,56701.0,56700.0,0.80815253]
[1725594881027,0.520991,56701.0,56700.0,0.45541953]
[1725594881235,0.520991,56701.0,56700.0,0.45189266]
[1725594881459,0.520991,56701.0,56700.0,0.80462566]
[1725594881706,0.186887,56701.0,56700.0,1.15735866]
[1725594881876,0.186887,56701.0,56700.0,1.51009166]
[1725594882718,0.186887,56701.0,56700.0,1.50909166]
[1725594883357,0.187887,56701.0,56700.0,1.51409166]
[1725594883578,0.21453736,56701.0,56700.0,1.50909166]
[1725594884007,0.21553736,56701.0,56700.0,1.51409166]
[1725594885177,0.21553736,56701.0,56700.0,1.87682466]
[1725594885381,0.02946636,56701.0,56700.0,1.87882466]
[1725594889058,0.001816,56701.0,56700.0,3.13032466]
[1725594890199,0.000816,56701.0,56700.0,3.12532466]
[1725594890629,0.001816,56701.0,56700.0,3.12832466]
[1725594894024,0.001816,56701.0,56700.0,3.48105766]
[1725594894247,0.001816,56701.0,56700.0,3.50405766]
[1725594897695,0.001816,56701.0,56700.0,3.15132466]
[1725594901035,0.001816,56701.0,56700.0,3.50405766]
[1725594901458,0.001816,56701.0,56700.0,3.15132466]
[1725594901676,0.001816,56701.0,56700.0,3.12832466]
[1725594904085,0.02764501,56711.0,56710.0,0.251432]
[1725594904300,0.52650515,56720.0,56717.0,0.780372]
[1725594904552,0.55414927,56720.0,56717.0,1.132999]
[1725594904779,0.529747,56718.0,56717.0,0.0523539]
[1725594904974,2.198855,56718.0,56717.0,0.0523539]
[1725594905194,1.669924,56718.0,56717.0,0.022632]
[1725594905427,2.198855,56718.0,56717.0,0.022632]
[1725594905635,1.643781,56718.0,56717.0,0.022632]
[1725594905917,1.643781,56718.0,56717.0,0.05235319]
[1725594906083,1.643781,56718.0,56717.0,0.022632]
[1725594906287,1.4860464,56718.0,56717.0,0.05235319]
[1725594906510,1.4860464,56718.0,56717.0,0.036632]
[1725594906727,1.4860464,56718.0,56717.0,0.05235319]
[1725594907177,1.4860464,56718.0,56717.0,0.06135319]
[1725594907423,1.6623564,56718.0,56717.0,0.06135319]
[1725594907619,1.378042,56718.0,56717.0,0.06135319]
[1725594910387,0.0949,56719.0,56718.0,0.002]
[1725594910805,0.0949,56719.0,56718.0,0.05171796]
[1725594911062,0.271207,56719.0,56718.0,0.05171796]
[1725594911499,0.0949,56719.0,56718.0,0.05171796]
[1725594912021,1.472942,56719.0,56718.0,0.05171796]
[1725594912468,1.472942,56719.0,56718.0,0.22802796]
[1725594912714,1.649249,56719.0,56718.0,0.05971796]
[1725594912934,1.472942,56719.0,56718.0,0.23602796]
[1725594913150,1.472942,56719.0,56718.0,0.05971614]
[1725594913380,1.649249,56719.0,56718.0,0.05971614]
[1725594913605,1.472942,56719.0,56718.0,0.05971614]
[1725594915013,1.473758,56719.0,56718.0,0.58927914]
[1725594915241,0.29582,56719.0,56718.0,0.94190014]
[1725594915490,0.000816,56719.0,56718.0,1.65714214]
[1725594915704,0.352507,56737.0,56718.0,1.65714214]
[1725594915705,0.301245,56739.0,56738.0,0.000632]
[1725594915970,2.031778,56739.0,56738.0,0.000632]
[1725594916199,2.454269,56739.0,56738.0,0.000632]
[1725594916440,2.101778,56739.0,56738.0,0.000632]
[1725594916666,1.99528064,56739.0,56738.0,0.000632]
[1725594916912,1.99528064,56739.0,56738.0,0.03105641]
[1725594917157,1.99528064,56739.0,56738.0,0.000632]
[1725594917399,1.92528064,56739.0,56738.0,0.000632]
[1725594917614,2.37777164,56739.0,56738.0,0.000632]
[1725594917861,2.359269,56739.0,56738.0,0.000632]
[1725594918579,2.006778,56739.0,56738.0,0.000632]
[1725594918801,2.104478,56739.0,56738.0,0.001632]
[1725594919017,2.104478,56739.0,56738.0,0.03205472]
[1725594919229,2.104478,56739.0,56738.0,0.001632]
[1725594919450,2.104478,56739.0,56738.0,0.03205472]
[1725594919680,2.456969,56739.0,56738.0,0.001632]
[1725594919911,2.104478,56739.0,56738.0,0.03205472]
[1725594920128,2.104478,56739.0,56738.0,0.001632]
[1725594920375,1.478042,56739.0,56738.0,0.001632]
[1725594920831,1.478042,56739.0,56738.0,0.20830272]
[1725594921068,1.478042,56739.0,56738.0,0.19788]
[1725594921272,1.478042,56739.0,56738.0,0.22830272]
[1725594921541,1.478042,56739.0,56738.0,0.93329672]
[1725594921542,1.378042,56739.0,56738.0,0.93329672]
[1725594921748,1.378042,56744.0,56743.0,0.000632]
[1725594922039,1.378042,56744.0,56743.0,0.020632]
[1725594922282,0.984879,56744.0,56743.0,0.93420019]
[1725594922531,0.176222,56747.0,56743.0,0.58173419]
[1725594922797,0.528656,56748.0,56747.0,0.002632]
[1725594923227,1.554257,56749.0,56748.0,0.002]
[1725594923449,1.103773,56749.0,56748.0,0.002632]
[1725594923685,1.556202,56749.0,56748.0,0.031013]
[1725594923901,1.58383381,56749.0,56748.0,0.000632]
[1725594924132,2.06383381,56749.0,56748.0,0.000632]
[1725594925468,3.44187581,56749.0,56748.0,0.000632]
[1725594926154,3.44187581,56749.0,56748.0,0.002632]
[1725594927292,3.31687581,56749.0,56748.0,0.002632]
[1725594927699,2.83687581,56749.0,56748.0,0.002632]
[1725594927935,2.73917581,56749.0,56748.0,0.002632]
[1725594931944,3.09160481,56749.0,56748.0,0.000632]
[1725594932174,3.21060481,56749.0,56748.0,0.000632]
[1725594933272,2.73917581,56749.0,56748.0,0.002632]
[1725594936986,2.73449837,56749.0,56748.0,0.002632]
[1725594937670,2.73449837,56749.0,56748.0,0.000632]
[1725594938531,2.73428625,56749.0,56748.0,0.000632]
[1725594938977,2.73428625,56749.0,56748.0,0.002632]
[1725594939869,2.73510225,56749.0,56748.0,0.002632]
[1725594948800,2.73510225,56749.0,56748.0,0.000632]
[1725594949053,2.73510225,56749.0,56742.0,0.0998]
[1725594949054,1.233652,56742.0,56741.0,0.000632]
[1725594949286,1.233652,56742.0,56739.0,0.001632]
[1725594949287,0.881212,56740.0,56739.0,0.001632]
[1725594949515,3.09064154,56740.0,56739.0,0.001632]
[1725594949744,3.26612718,56740.0,56739.0,0.001632]
[1725594949975,3.5937647,56740.0,56739.0,0.001632]
[1725594950211,3.82101074,56740.0,56739.0,0.001632]
[1725594950639,3.7160647,56740.0,56739.0,0.001632]
[1725594951183,3.7160647,56740.0,56739.0,0.002632]
[1725594951414,3.7160647,56740.0,56739.0,0.001632]
[1725594952101,3.77980675,56740.0,56739.0,0.001632]
[1725594952329,3.7160647,56740.0,56739.0,0.001632]
[1725594952795,3.79330033,56740.0,56739.0,0.002632]
[1725594953021,3.77930033,56740.0,56739.0,0.001632]
[1725594953267,3.7160647,56740.0,56739.0,0.001632]
[1725594953489,3.7160647,56740.0,56739.0,0.002632]
[1725594953490,3.7300647,56740.0,56739.0,0.002632]
[1725594954207,3.7306753,56740.0,56739.0,0.002632]
[1725594955128,3.7300647,56740.0,56739.0,0.002632]
[1725594956676,3.86127903,56740.0,56739.0,0.002632]
[1725594956890,3.7300647,56740.0,56739.0,0.002632]
[1725594957315,3.86127903,56740.0,56739.0,0.002632]
[1725594958217,3.52620516,56740.0,56739.0,0.002632]
[1725594958402,3.70244716,56740.0,56739.0,0.002632]
[1725594958836,3.58014716,56740.0,56739.0,0.002632]
[1725594960146,2.20210516,56740.0,56739.0,0.002632]
[1725594960364,3.58014716,56740.0,56739.0,0.002632]
[1725594960579,3.12886216,56740.0,56739.0,0.002632]
[1725594961285,3.12865007,56740.0,56739.0,0.002632]
[1725594963170,3.14928207,56740.0,56739.0,0.002632]
[1725594964671,3.15009807,56740.0,56739.0,0.002632]
[1725594965128,3.16850045,56740.0,56739.0,0.002632]
[1725594966374,3.24722982,56740.0,56739.0,0.002632]
[1725594967194,3.23322982,56740.0,56739.0,0.001632]
[1725594967413,3.24622982,56740.0,56739.0,0.001632]
[1725594967645,2.77138345,56740.0,56739.0,0.001632]
[1725594968094,2.77138345,56740.0,56739.0,0.003632]
[1725594970506,2.77138345,56740.0,56739.0,0.004264]
[1725594970725,2.41889845,56740.0,56739.0,0.221064]
[1725594971151,2.39126029,56740.0,56739.0,0.221064]
[1725594972206,2.37826029,56740.0,56739.0,0.221064]
[1725594972645,2.73874529,56740.0,56739.0,0.219064]
[1725594973099,2.73874529,56740.0,56739.0,0.221064]
[1725594974675,2.76638258,56740.0,56739.0,0.221064]
[1725594974884,1.38834058,56740.0,56739.0,0.221064]
[1725594975094,2.76638258,56740.0,56739.0,0.221064]
[1725594976163,2.76638258,56740.0,56739.0,0.002264]
[1725594977527,2.76638258,56740.0,56739.0,0.004264]
[1725594978460,2.76638258,56740.0,56739.0,0.001632]
[1725594978710,3.71226758,56740.0,56739.0,0.001632]
[1725594978945,3.88948828,56740.0,56739.0,0.001632]
[1725594979424,4.34703408,56740.0,56739.0,0.001632]
[1725594980138,3.99454908,56740.0,56739.0,0.001632]
[1725594981306,4.34703408,56740.0,56739.0,0.001632]
[1725594982461,4.34703408,56740.0,56722.0,0.119832]
[1725594982462,1.234023,56725.0,56722.0,0.119832]
[1725594982680,2.612065,56725.0,56724.0,0.120232]
[1725594982898,2.612065,56725.0,56724.0,0.14720912]
[1725594983129,2.612065,56725.0,56724.0,0.120232]
[1725594983801,2.614065,56725.0,56724.0,0.120232]
[1725594984567,2.64170815,56725.0,56724.0,0.120232]
[1725594987813,2.38573096,56725.0,56724.0,0.120232]
[1725594988021,2.56201996,56725.0,56724.0,0.120232]
[1725594989201,2.56201996,56725.0,56724.0,0.121864]
[1725594989440,2.56201996,56725.0,56724.0,0.240264]
[1725594997690,2.20944196,56725.0,56724.0,0.240264]
[1725594998143,2.20944196,56725.0,56724.0,0.26752616]
[1725594998368,1.82922081,56725.0,56724.0,0.240264]
[1725594998586,1.82922081,56725.0,56724.0,0.26752616]
[1725595000327,1.556331,56725.0,56724.0,0.26752616]
[1725595000558,1.93655093,56725.0,56724.0,0.26752616]
[1725595001488,1.908909,56725.0,56724.0,0.26752616]
[1725595001726,1.380042,56725.0,56724.0,0.26752616]
[1725595001946,1.380858,56725.0,56724.0,0.26752616]
[1725595002371,1.380858,56725.0,56724.0,0.44381816]
[1725595002602,1.380858,56725.0,56724.0,0.26752616]
[1725595002831,1.380858,56725.0,56724.0,0.44381816]
[1725595003032,1.380858,56725.0,56724.0,0.26752616]
[1725595003033,1.378858,56725.0,56724.0,0.26752616]
[1725595003448,1.378858,56725.0,56724.0,0.26852616]
[1725595003948,1.555147,56725.0,56724.0,0.26852616]
[1725595004817,1.58278857,56725.0,56724.0,0.26852616]
[1725595006107,1.93536657,56725.0,56724.0,0.26852616]
[1725595009070,1.907725,56725.0,56724.0,0.26852616]
[1725595011992,2.260303,56725.0,56724.0,0.26852616]
[1725595012409,2.28794478,56725.0,56724.0,0.26852616]
[1725595013530,2.260303,56725.0,56724.0,0.26852616]
[1725595015181,0.000816,56725.0,56724.0,1.14998616]
[1725595015398,0.000816,56725.0,56724.0,1.475308]
[1725595015632,0.000816,56725.0,56724.0,1.4927506]
[1725595016045,0.000816,56725.0,56724.0,1.4917506]
[1725595016532,0.001816,56725.0,56724.0,1.4927506]
[1725595016943,0.001816,56725.0,56724.0,1.4947506]
[1725595019167,0.001816,56725.0,56724.0,1.4927506]
[1725595020298,0.001816,56725.0,56724.0,1.4947506]
[1725595020534,0.001816,56725.0,56724.0,1.8473346]
[1725595021234,0.001816,56725.0,56724.0,1.8453346]
[1725595022139,0.001816,56725.0,56724.0,1.8473346]
[1725595023088,0.001816,56725.0,56724.0,2.1999186]
[1725595024439,0.001816,56725.0,56724.0,2.22253756]
[1725595024677,0.001816,56725.0,56724.0,2.23253756]
[1725595025115,0.001816,56725.0,56724.0,2.25253756]
[1725595025980,0.001816,56725.0,56724.0,2.60512156]
[1725595026217,0.000816,56740.0,56739.0,1.25635]
[1725595026430,0.000816,56740.0,56739.0,1.47545]
[1725595026727,0.158505,56740.0,56739.0,1.4928608]
[1725595027140,0.158505,56740.0,56739.0,1.8473518]
[1725595027141,0.000816,56740.0,56739.0,1.8473518]
[1725595027820,0.001816,56740.0,56739.0,1.8573518]
[1725595029170,0.000816,56740.0,56739.0,1.8473518]
[1725595029603,0.001816,56740.0,56739.0,1.8593518]
[1725595037587,0.54157968,56755.0,56754.0,0.002]
[1725595037822,0.54157968,56755.0,56754.0,0.022]
[1725595037823,0.278696,56755.0,56754.0,0.022]
[1725595038050,1.68436598,56755.0,56754.0,0.03937459]
[1725595038328,1.68436598,56755.0,56754.0,0.022]
[1725595038555,1.68436598,56755.0,56754.0,0.03937459]
[1725595039008,1.656738,56755.0,56754.0,0.03937459]
[1725595039234,2.009129,56755.0,56754.0,0.024]
[1725595040890,2.009129,56755.0,56754.0,0.04137459]
[1725595042285,2.0367554,56755.0,56754.0,0.04137459]
[1725595048388,1.9342554,56755.0,56754.0,0.04137459]
[1725595048866,1.9350714,56755.0,56754.0,0.04137459]
[1725595049080,1.907445,56755.0,56754.0,0.04137459]
[1725595049736,1.555054,56755.0,56754.0,0.04200659]
[1725595050611,1.907445,56755.0,56754.0,0.04200659]
[1725595052389,1.93507289,56755.0,56754.0,0.04200659]
[1725595053941,1.58268189,56755.0,56754.0,0.04200659]
[1725595054619,1.93507289,56755.0,56754.0,0.04200659]
[1725595055070,1.67618189,56755.0,56754.0,0.024632]
[1725595055554,1.85216583,56755.0,56754.0,0.024632]
[1725595055990,1.85216583,56755.0,56754.0,0.04200659]
[1725595057528,1.85194113,56755.0,56754.0,0.04200659]
[1725595058200,2.20433213,56755.0,56754.0,0.04200659]
[1725595058409,2.20433213,56755.0,56754.0,0.024632]
[1725595058642,2.20433213,56755.0,56754.0,0.04200659]
[1725595059065,2.17670424,56755.0,56754.0,0.04200659]
[1725595060391,0.88135724,56755.0,56754.0,0.04363859]
[1725595060666,2.17670424,56755.0,56754.0,0.04363859]
[1725595061596,3.55057724,56755.0,56754.0,0.02100659]
[1725595061836,3.67981866,56755.0,56754.0,0.02970388]
[1725595062065,3.83363794,56755.0,56754.0,0.003632]
[1725595062301,3.86126859,56755.0,56754.0,0.003632]
[1725595062531,3.86126859,56755.0,56754.0,0.001632]
[1725595062993,3.87426859,56755.0,56754.0,0.002632]
[1725595063661,3.89696596,56755.0,56754.0,0.002632]
[1725595064615,3.79212486,56755.0,56754.0,0.002632]
[1725595078173,3.67512486,56755.0,56754.0,0.002632]
[1725595080266,2.37977786,56755.0,56754.0,0.002632]
[1725595080586,3.67512486,56755.0,56754.0,0.002632]
[1725595081072,3.19512486,56755.0,56754.0,0.002632]
[1725595081450,3.09542486,56755.0,56754.0,0.002632]
[1725595085816,3.07242486,56755.0,56754.0,0.002632]
[1725595086270,3.07242486,56755.0,56754.0,0.098832]
[1725595086271,3.04972749,56755.0,56754.0,0.098832]
[1725595086704,3.18129866,56755.0,56754.0,0.098832]
[1725595087985,3.1813021,56755.0,56754.0,0.098832]
[1725595089468,3.20390926,56755.0,56754.0,0.098832]
[1725595089708,3.1549967,56755.0,56754.0,0.100832]
[1725595089916,3.1549967,56755.0,56754.0,0.101464]
[1725595089917,2.69733649,56755.0,56754.0,0.101464]
[1725595090121,2.80260712,56755.0,56754.0,0.101464]
[1725595092541,2.69733649,56755.0,56754.0,0.101464]
[1725595095329,2.80262808,56755.0,56754.0,0.101464]
[1725595095776,2.80262808,56755.0,56754.0,0.099464]
[1725595096000,2.69733649,56755.0,56754.0,0.003264]
[1725595096229,2.82895098,56755.0,56754.0,0.003264]
[1725595096689,2.66934665,56755.0,56754.0,0.003264]
[1725595097136,2.39594506,56755.0,56754.0,0.099464]
[1725595097565,1.61217365,56755.0,56754.0,0.226864]
[1725595097777,1.96456465,56755.0,56754.0,0.228864]
[1725595098016,2.31695565,56755.0,56754.0,0.25486772]
[1725595098519,2.85695565,56755.0,56754.0,0.228864]
[1725595098738,2.30395565,56755.0,56754.0,0.227864]
[1725595099178,2.31095565,56755.0,56754.0,0.228864]
[1725595100900,2.36362771,56755.0,56754.0,0.228864]
[1725595101327,2.31095565,56755.0,56754.0,0.228864]
[1725595104551,2.36364813,56755.0,56754.0,0.228864]
[1725595106259,2.36364813,56755.0,56754.0,0.25486772]
[1725595106686,2.38997657,56755.0,56754.0,0.25486772]
[1725595107393,2.38997657,56755.0,56754.0,0.25286772]
[1725595107611,2.74236757,56755.0,56754.0,0.25286772]
[1725595107856,2.74236757,56755.0,56754.0,0.228864]
[1725595108488,2.74236757,56755.0,56754.0,0.003264]
[1725595108689,2.74318357,56755.0,56754.0,0.003264]
[1725595109121,3.28318357,56755.0,56754.0,0.003264]
[1725595109319,3.20416265,56755.0,56754.0,0.003264]
[1725595109765,3.20416265,56755.0,56754.0,0.002632]
[1725595109964,3.23177329,56755.0,56754.0,0.002632]
[1725595110188,2.69177329,56755.0,56754.0,0.002632]
[1725595111240,2.71276141,56755.0,56754.0,0.002632]
[1725595111887,3.29585395,56755.0,56754.0,0.002632]
[1725595112955,3.2682233,56755.0,56754.0,0.002632]
[1725595113180,3.8082233,56755.0,56754.0,0.002632]
[1725595113397,3.7092233,56755.0,56754.0,0.002632]
[1725595113810,3.70926123,56755.0,56754.0,0.002632]
[1725595114511,3.73689124,56755.0,56754.0,0.002632]
[1725595117513,3.60515177,56755.0,56754.0,0.002632]
[1725595120388,3.60515177,56755.0,56754.0,0.098532]
[1725595120595,3.60515177,56755.0,56754.0,0.226632]
[1725595121013,3.06515177,56755.0,56754.0,0.226632]
[1725595121349,2.69177265,56755.0,56754.0,0.226632]
[1725595121775,2.69177265,56755.0,56754.0,0.228632]
[1725595122220,2.69177265,56755.0,56754.0,0.226632]
[1725595122451,2.69177265,56755.0,56754.0,0.229264]
[1725595122677,2.69177265,56755.0,56754.0,0.227264]
[1725595123120,2.79716043,56755.0,56754.0,0.227264]
[1725595123331,2.69177265,56755.0,56754.0,0.227264]
[1725595126041,2.39216139,56755.0,56754.0,0.227264]
[1725595126252,2.64614355,56755.0,56754.0,0.227264]
[1725595126684,2.54074675,56755.0,56754.0,0.227264]
[1725595127110,2.61979933,56755.0,56754.0,0.227264]
[1725595127556,2.61979933,56755.0,56754.0,0.229264]
[1725595130218,2.54074675,56755.0,56754.0,0.229264]
[1725595130650,2.6197933,56755.0,56754.0,0.229264]
[1725595131308,2.54074675,56755.0,56754.0,0.229264]
[1725595133067,2.54074675,56755.0,56754.0,0.227264]
[1725595133944,2.54074675,56755.0,56754.0,0.229264]
[1725595135056,2.54074675,56755.0,56754.0,0.002632]
[1725595135286,2.89313775,56755.0,56754.0,0.002632]
[1725595135504,3.02488375,56755.0,56754.0,0.002632]
[1725595135710,3.0207509,56755.0,56754.0,0.002632]
[1725595137237,3.79015859,56755.0,56754.0,0.002632]
[1725595137529,4.27080383,56755.0,56754.0,0.002632]
[1725595137768,4.09299905,56755.0,56754.0,0.002632]
[1725595137966,4.16875114,56755.0,56754.0,0.002632]
[1725595138405,4.1398287,56755.0,56754.0,0.002632]
[1725595139038,4.6798287,56755.0,56754.0,0.002632]
[1725595139460,4.85050074,56755.0,56754.0,0.001632]
[1725595139689,4.86450074,56755.0,56754.0,0.002632]
[1725595140774,4.81767109,56755.0,56754.0,0.002632]
[1725595141209,4.63999905,56755.0,56754.0,0.002632]
[1725595144406,4.56760155,56755.0,56754.0,0.002632]
[1725595146228,4.0517099,56755.0,56754.0,0.002632]
[1725595148616,4.1224009,56755.0,56754.0,0.002632]
[1725595149078,3.6614419,56755.0,56754.0,0.002632]
[1725595149316,3.5677509,56755.0,56754.0,0.225432]
[1725595149533,3.2153599,56755.0,56754.0,0.225432]
[1725595150677,2.7629689,56755.0,56754.0,0.226064]
[1725595150950,2.40638001,56755.0,56754.0,0.228064]
[1725595151129,2.024278,56755.0,56754.0,0.228064]
[1725595151340,2.024278,56755.0,56754.0,0.25430323]
[1725595151567,2.376669,56755.0,56754.0,0.25167123]
[1725595151809,2.80796242,56755.0,56754.0,0.25167123]
[1725595152015,2.80796242,56755.0,56754.0,0.225432]
[1725595152226,2.72906,56755.0,56754.0,0.227432]
[1725595152451,2.71506,56755.0,56754.0,0.226432]
[1725595152726,2.84268906,56755.0,56754.0,0.226432]
[1725595152952,2.85068906,56755.0,56754.0,0.227432]
[1725595153182,2.84268906,56755.0,56754.0,0.226432]
[1725595153397,2.84968906,56755.0,56754.0,0.227432]
[1725595153842,2.92859073,56755.0,56754.0,0.227432]
[1725595154299,2.57619973,56755.0,56754.0,0.227432]
[1725595154523,2.49729806,56755.0,56754.0,0.227432]
[1725595154944,1.95729806,56755.0,56754.0,0.227432]
[1725595155359,1.25251606,56755.0,56754.0,0.228064]
[1725595155572,1.25251606,56755.0,56754.0,0.25330124]
[1725595155791,1.24551606,56755.0,56754.0,0.25330124]
[1725595156000,1.60190706,56755.0,56754.0,0.25330124]
[1725595156640,1.60390706,56755.0,56754.0,0.25330124]
[1725595156825,1.24551606,56755.0,56754.0,0.25330124]
[1725595157253,1.24651606,56755.0,56754.0,0.25330124]
[1725595157378,1.59890706,56755.0,56754.0,0.25330124]
[1725595158425,1.59890706,56755.0,56754.0,0.227064]
[1725595158827,1.59890706,56755.0,56754.0,0.25330124]
[1725595160532,1.59890706,56755.0,56754.0,0.227064]
[1725595161506,1.95129806,56755.0,56754.0,0.227064]
[1725595163046,2.03019321,56755.0,56754.0,0.004264]
[1725595163246,2.00388239,56755.0,56754.0,0.227064]
[1725595163456,2.00388239,56755.0,56754.0,0.25330124]
[1725595163664,1.923669,56755.0,56754.0,0.25330124]
[1725595164989,2.40752083,56755.0,56754.0,0.02786924]
[1725595165187,2.3549365,56755.0,56754.0,0.001632]
[1725595165388,2.35627271,56755.0,56754.0,0.001632]
[1725595165630,2.38256373,56755.0,56754.0,0.001632]
[1725595166580,2.93256373,56755.0,56754.0,0.001632]
[1725595168336,2.93255974,56755.0,56754.0,0.001632]
[1725595171038,2.85368723,56755.0,56754.0,0.001632]
[1725595172011,3.30677823,56755.0,56754.0,0.001632]
[1725595172214,3.31124157,56755.0,56754.0,0.001632]
[1725595172436,3.25669158,56755.0,56754.0,0.001632]
[1725595174649,3.61116358,56755.0,56754.0,0.001632]
[1725595176210,3.63188306,56755.0,56754.0,0.001632]
[1725595177357,3.76333724,56755.0,56754.0,0.001632]
[1725595178127,3.63188306,56755.0,56754.0,0.001632]
[1725595178331,3.76333724,56755.0,56754.0,0.001632]
[1725595178539,3.7633004,56755.0,56754.0,0.001632]
[1725595180482,3.63188306,56755.0,56754.0,0.001632]
[1725595180694,3.98427406,56755.0,56754.0,0.001632]
[1725595181761,4.56653306,56755.0,56754.0,1e-06]
[1725595181972,4.60327969,56755.0,56754.0,1e-06]
[1725595182407,4.71938911,56755.0,56754.0,1e-06]
[1725595182634,4.74526718,56755.0,56754.0,1e-06]
[1725595182835,4.71938911,56755.0,56754.0,1e-06]
[1725595183052,4.71838911,56755.0,56754.0,1e-06]
[1725595183299,4.5008417,56755.0,56754.0,0.001001]
[1725595185772,4.6008417,56755.0,56754.0,0.001001]
[1725595187773,4.6008417,56755.0,56754.0,1e-06]
[1725595190913,4.6016577,56755.0,56754.0,1e-06]
[1725595196588,4.44231107,56755.0,56754.0,1e-06]
[1725595197771,4.51197232,56755.0,56754.0,1e-06]
[1725595200873,4.55812697,56755.0,56754.0,1e-06]
[1725595201293,4.58371166,56755.0,56754.0,1e-06]
[1725595201726,4.55608443,56755.0,56754.0,1e-06]
[1725595202213,4.45818443,56755.0,56754.0,1e-06]
[1725595202391,4.45769301,56755.0,56754.0,1e-06]
[1725595202604,4.43240647,56755.0,56754.0,1e-06]
[1725595203261,4.37654759,56755.0,56754.0,0.098101]
[1725595203492,3.93202484,56755.0,56754.0,0.098101]
[1725595204126,3.57963384,56755.0,56754.0,0.224101]
[1725595204360,3.47963384,56755.0,56754.0,0.224101]
[1725595204551,3.47963384,56755.0,56754.0,0.226101]
[1725595204552,3.10652336,56755.0,56754.0,0.226101]
[1725595204863,3.10652336,56755.0,56754.0,0.422932]
[1725595204864,0.787121,56755.0,56754.0,0.422932]
[1725595205080,0.237121,56755.0,56754.0,0.422932]
[1725595205310,0.310116,56755.0,56754.0,0.246733]
[1725595205523,0.133921,56755.0,56754.0,0.246733]
[1725595205750,0.3194307,56757.0,56756.0,0.2461]
[1725595206027,0.3194307,56757.0,56756.0,0.2321]
[1725595206414,0.3194307,56757.0,56756.0,0.408924]
[1725595206623,0.353134,56767.0,56766.0,0.008]
[1725595206624,0.000817,56767.0,56766.0,0.008]
[1725595206760,0.000817,56767.0,56766.0,0.720216]
[1725595207144,0.353134,56767.0,56766.0,0.191732]
[1725595207382,0.881609,56767.0,56766.0,0.191732]
[1725595207594,1.233926,56767.0,56766.0,0.1831]
[1725595207763,1.586243,56767.0,56766.0,0.126]
[1725595208189,2.6802039,56767.0,56766.0,0.126]
[1725595208638,1.250017,56767.0,56766.0,0.126632]
[1725595208883,1.250017,56767.0,56766.0,0.232732]
[1725595208884,0.308606,56767.0,56766.0,0.232732]
[1725595209103,0.290095,56767.0,56766.0,0.232732]
[1725595209319,0.642412,56767.0,56766.0,0.232732]